Workbook

Sheet 麻江县
A1: 附件1
A2: 麻江县2025年公开选聘城市社区工作者笔试成绩排名及入围资格复审人员名单
A3: 姓名 | B3: 准考证号 | C3: 岗位代码 | D3: 单位名称 | E3: 职位名称 | F3: 笔试成绩 | G3: 排名 | H3: 是否入围 资格复审
A4: 李珂 | B4: 25030100605 | C4: 25003 | D4: 金竹街道官井湖社区 | E4: 专职网格员 | F4: 79.5 | G4: =SUMPRODUCT(($D$4:$D$325=D4)*($E$4:$E$325=E4)*($F$4:$F$325>F4))+1 -> 1 | H4: 是
A5: 朱雪磊 | B5: 25030100713 | C5: 25003 | D5: 金竹街道官井湖社区 | E5: 专职网格员 | F5: 77.5 | G5: =SUMPRODUCT(($D$4:$D$325=D5)*($E$4:$E$325=E5)*($F$4:$F$325>F5))+1 -> 2 | H5: 是
A6: 李道娟 | B6: 25030101120 | C6: 25003 | D6: 金竹街道官井湖社区 | E6: 专职网格员 | F6: 77 | G6: =SUMPRODUCT(($D$4:$D$325=D6)*($E$4:$E$325=E6)*($F$4:$F$325>F6))+1 -> 3 | H6: 是
A7: 罗顺雨 | B7: 25030100830 | C7: 25003 | D7: 金竹街道官井湖社区 | E7: 专职网格员 | F7: 76.5 | G7: =SUMPRODUCT(($D$4:$D$325=D7)*($E$4:$E$325=E7)*($F$4:$F$325>F7))+1 -> 4 | H7: 是
A8: 缪守迪 | B8: 25030100101 | C8: 25003 | D8: 金竹街道官井湖社区 | E8: 专职网格员 | F8: 75.5 | G8: =SUMPRODUCT(($D$4:$D$325=D8)*($E$4:$E$325=E8)*($F$4:$F$325>F8))+1 -> 5 | H8: 是
A9: 夏玉 | B9: 25030100919 | C9: 25003 | D9: 金竹街道官井湖社区 | E9: 专职网格员 | F9: 75 | G9: =SUMPRODUCT(($D$4:$D$325=D9)*($E$4:$E$325=E9)*($F$4:$F$325>F9))+1 -> 6 | H9: 是
A10: 杨娇 | B10: 25030101012 | C10: 25003 | D10: 金竹街道官井湖社区 | E10: 专职网格员 | F10: 75 | G10: =SUMPRODUCT(($D$4:$D$325=D10)*($E$4:$E$325=E10)*($F$4:$F$325>F10))+1 -> 6 | H10: 是
A11: 杨桂明 | B11: 25030100114 | C11: 25003 | D11: 金竹街道官井湖社区 | E11: 专职网格员 | F11: 74.5 | G11: =SUMPRODUCT(($D$4:$D$325=D11)*($E$4:$E$325=E11)*($F$4:$F$325>F11))+1 -> 8 | H11: 是
A12: 肖胜男 | B12: 25030100421 | C12: 25003 | D12: 金竹街道官井湖社区 | E12: 专职网格员 | F12: 74.5 | G12: =SUMPRODUCT(($D$4:$D$325=D12)*($E$4:$E$325=E12)*($F$4:$F$325>F12))+1 -> 8 | H12: 是
A13: 潘兴宏 | B13: 25030101028 | C13: 25003 | D13: 金竹街道官井湖社区 | E13: 专职网格员 | F13: 74.5 | G13: =SUMPRODUCT(($D$4:$D$325=D13)*($E$4:$E$325=E13)*($F$4:$F$325>F13))+1 -> 8 | H13: 是
A14: 顾光志 | B14: 25030100321 | C14: 25003 | D14: 金竹街道官井湖社区 | E14: 专职网格员 | F14: 74 | G14: =SUMPRODUCT(($D$4:$D$325=D14)*($E$4:$E$325=E14)*($F$4:$F$325>F14))+1 -> 11 | H14: 是
A15: 欧阳玲相 | B15: 25030100724 | C15: 25003 | D15: 金竹街道官井湖社区 | E15: 专职网格员 | F15: 74 | G15: =SUMPRODUCT(($D$4:$D$325=D15)*($E$4:$E$325=E15)*($F$4:$F$325>F15))+1 -> 11 | H15: 是
A16: 程道香 | B16: 25030100407 | C16: 25003 | D16: 金竹街道官井湖社区 | E16: 专职网格员 | F16: 73.5 | G16: =SUMPRODUCT(($D$4:$D$325=D16)*($E$4:$E$325=E16)*($F$4:$F$325>F16))+1 -> 13 | H16: 是
A17: 邓丽东 | B17: 25030100306 | C17: 25003 | D17: 金竹街道官井湖社区 | E17: 专职网格员 | F17: 72.5 | G17: =SUMPRODUCT(($D$4:$D$325=D17)*($E$4:$E$325=E17)*($F$4:$F$325>F17))+1 -> 14 | H17: 是
A18: 王佳丽 | B18: 25030100706 | C18: 25003 | D18: 金竹街道官井湖社区 | E18: 专职网格员 | F18: 72 | G18: =SUMPRODUCT(($D$4:$D$325=D18)*($E$4:$E$325=E18)*($F$4:$F$325>F18))+1 -> 15 | H18: 是
A19: 罗正琼 | B19: 25030100125 | C19: 25003 | D19: 金竹街道官井湖社区 | E19: 专职网格员 | F19: 71 | G19: =SUMPRODUCT(($D$4:$D$325=D19)*($E$4:$E$325=E19)*($F$4:$F$325>F19))+1 -> 16 | H19: 是
A20: 陆子芹 | B20: 25030100606 | C20: 25003 | D20: 金竹街道官井湖社区 | E20: 专职网格员 | F20: 70.5 | G20: =SUMPRODUCT(($D$4:$D$325=D20)*($E$4:$E$325=E20)*($F$4:$F$325>F20))+1 -> 17 | H20: 是
A21: 陈方琴 | B21: 25030100618 | C21: 25003 | D21: 金竹街道官井湖社区 | E21: 专职网格员 | F21: 70.5 | G21: =SUMPRODUCT(($D$4:$D$325=D21)*($E$4:$E$325=E21)*($F$4:$F$325>F21))+1 -> 17 | H21: 是
A22: 罗井冬 | B22: 25030100621 | C22: 25003 | D22: 金竹街道官井湖社区 | E22: 专职网格员 | F22: 70.5 | G22: =SUMPRODUCT(($D$4:$D$325=D22)*($E$4:$E$325=E22)*($F$4:$F$325>F22))+1 -> 17 | H22: 是
A23: 杨粉芝 | B23: 25030100707 | C23: 25003 | D23: 金竹街道官井湖社区 | E23: 专职网格员 | F23: 70.5 | G23: =SUMPRODUCT(($D$4:$D$325=D23)*($E$4:$E$325=E23)*($F$4:$F$325>F23))+1 -> 17 | H23: 是
A24: 吴如群 | B24: 25030100719 | C24: 25003 | D24: 金竹街道官井湖社区 | E24: 专职网格员 | F24: 70.5 | G24: =SUMPRODUCT(($D$4:$D$325=D24)*($E$4:$E$325=E24)*($F$4:$F$325>F24))+1 -> 17 | H24: 是
A25: 罗召弟 | B25: 25030100208 | C25: 25003 | D25: 金竹街道官井湖社区 | E25: 专职网格员 | F25: 70 | G25: =SUMPRODUCT(($D$4:$D$325=D25)*($E$4:$E$325=E25)*($F$4:$F$325>F25))+1 -> 22
A26: 何光琴 | B26: 25030100812 | C26: 25003 | D26: 金竹街道官井湖社区 | E26: 专职网格员 | F26: 70 | G26: =SUMPRODUCT(($D$4:$D$325=D26)*($E$4:$E$325=E26)*($F$4:$F$325>F26))+1 -> 22
A27: 刘章兰 | B27: 25030100312 | C27: 25003 | D27: 金竹街道官井湖社区 | E27: 专职网格员 | F27: 69.5 | G27: =SUMPRODUCT(($D$4:$D$325=D27)*($E$4:$E$325=E27)*($F$4:$F$325>F27))+1 -> 24
A28: 田欣 | B28: 25030101011 | C28: 25003 | D28: 金竹街道官井湖社区 | E28: 专职网格员 | F28: 69.5 | G28: =SUMPRODUCT(($D$4:$D$325=D28)*($E$4:$E$325=E28)*($F$4:$F$325>F28))+1 -> 24
A29: 梁欢欢 | B29: 25030101021 | C29: 25003 | D29: 金竹街道官井湖社区 | E29: 专职网格员 | F29: 69.5 | G29: =SUMPRODUCT(($D$4:$D$325=D29)*($E$4:$E$325=E29)*($F$4:$F$325>F29))+1 -> 24
A30: 罗井肖 | B30: 25030100214 | C30: 25003 | D30: 金竹街道官井湖社区 | E30: 专职网格员 | F30: 69 | G30: =SUMPRODUCT(($D$4:$D$325=D30)*($E$4:$E$325=E30)*($F$4:$F$325>F30))+1 -> 27
A31: 石相谊 | B31: 25030100801 | C31: 25003 | D31: 金竹街道官井湖社区 | E31: 专职网格员 | F31: 69 | G31: =SUMPRODUCT(($D$4:$D$325=D31)*($E$4:$E$325=E31)*($F$4:$F$325>F31))+1 -> 27
A32: 魏友志 | B32: 25030101023 | C32: 25003 | D32: 金竹街道官井湖社区 | E32: 专职网格员 | F32: 69 | G32: =SUMPRODUCT(($D$4:$D$325=D32)*($E$4:$E$325=E32)*($F$4:$F$325>F32))+1 -> 27
A33: 王小琴 | B33: 25030100117 | C33: 25003 | D33: 金竹街道官井湖社区 | E33: 专职网格员 | F33: 68.5 | G33: =SUMPRODUCT(($D$4:$D$325=D33)*($E$4:$E$325=E33)*($F$4:$F$325>F33))+1 -> 30
A34: 吴温芳 | B34: 25030100118 | C34: 25003 | D34: 金竹街道官井湖社区 | E34: 专职网格员 | F34: 68 | G34: =SUMPRODUCT(($D$4:$D$325=D34)*($E$4:$E$325=E34)*($F$4:$F$325>F34))+1 -> 31
A35: 杨云 | B35: 25030100904 | C35: 25003 | D35: 金竹街道官井湖社区 | E35: 专职网格员 | F35: 68 | G35: =SUMPRODUCT(($D$4:$D$325=D35)*($E$4:$E$325=E35)*($F$4:$F$325>F35))+1 -> 31
A36: 周文勤 | B36: 25030100116 | C36: 25003 | D36: 金竹街道官井湖社区 | E36: 专职网格员 | F36: 67.5 | G36: =SUMPRODUCT(($D$4:$D$325=D36)*($E$4:$E$325=E36)*($F$4:$F$325>F36))+1 -> 33
A37: 夏靖棠 | B37: 25030101002 | C37: 25003 | D37: 金竹街道官井湖社区 | E37: 专职网格员 | F37: 67.5 | G37: =SUMPRODUCT(($D$4:$D$325=D37)*($E$4:$E$325=E37)*($F$4:$F$325>F37))+1 -> 33
A38: 朱兴东 | B38: 25030101105 | C38: 25003 | D38: 金竹街道官井湖社区 | E38: 专职网格员 | F38: 67.5 | G38: =SUMPRODUCT(($D$4:$D$325=D38)*($E$4:$E$325=E38)*($F$4:$F$325>F38))+1 -> 33
A39: 王远妮 | B39: 25030101027 | C39: 25003 | D39: 金竹街道官井湖社区 | E39: 专职网格员 | F39: 67 | G39: =SUMPRODUCT(($D$4:$D$325=D39)*($E$4:$E$325=E39)*($F$4:$F$325>F39))+1 -> 36
A40: 胡朝莲 | B40: 25030100413 | C40: 25003 | D40: 金竹街道官井湖社区 | E40: 专职网格员 | F40: 66.5 | G40: =SUMPRODUCT(($D$4:$D$325=D40)*($E$4:$E$325=E40)*($F$4:$F$325>F40))+1 -> 37
A41: 熊蕊 | B41: 25030101005 | C41: 25003 | D41: 金竹街道官井湖社区 | E41: 专职网格员 | F41: 66.5 | G41: =SUMPRODUCT(($D$4:$D$325=D41)*($E$4:$E$325=E41)*($F$4:$F$325>F41))+1 -> 37
A42: 潘莉英 | B42: 25030100601 | C42: 25003 | D42: 金竹街道官井湖社区 | E42: 专职网格员 | F42: 66 | G42: =SUMPRODUCT(($D$4:$D$325=D42)*($E$4:$E$325=E42)*($F$4:$F$325>F42))+1 -> 39
A43: 文邦红 | B43: 25030101025 | C43: 25003 | D43: 金竹街道官井湖社区 | E43: 专职网格员 | F43: 66 | G43: =SUMPRODUCT(($D$4:$D$325=D43)*($E$4:$E$325=E43)*($F$4:$F$325>F43))+1 -> 39
A44: 王家兴 | B44: 25030100426 | C44: 25003 | D44: 金竹街道官井湖社区 | E44: 专职网格员 | F44: 65.5 | G44: =SUMPRODUCT(($D$4:$D$325=D44)*($E$4:$E$325=E44)*($F$4:$F$325>F44))+1 -> 41
A45: 魏媛媛 | B45: 25030100603 | C45: 25003 | D45: 金竹街道官井湖社区 | E45: 专职网格员 | F45: 65.5 | G45: =SUMPRODUCT(($D$4:$D$325=D45)*($E$4:$E$325=E45)*($F$4:$F$325>F45))+1 -> 41
A46: 蒋涛 | B46: 25030100617 | C46: 25003 | D46: 金竹街道官井湖社区 | E46: 专职网格员 | F46: 65.5 | G46: =SUMPRODUCT(($D$4:$D$325=D46)*($E$4:$E$325=E46)*($F$4:$F$325>F46))+1 -> 41
A47: 罗祥琴 | B47: 25030100925 | C47: 25003 | D47: 金竹街道官井湖社区 | E47: 专职网格员 | F47: 65.5 | G47: =SUMPRODUCT(($D$4:$D$325=D47)*($E$4:$E$325=E47)*($F$4:$F$325>F47))+1 -> 41
A48: 龙莉平 | B48: 25030101029 | C48: 25003 | D48: 金竹街道官井湖社区 | E48: 专职网格员 | F48: 65.5 | G48: =SUMPRODUCT(($D$4:$D$325=D48)*($E$4:$E$325=E48)*($F$4:$F$325>F48))+1 -> 41
A49: 徐丁利 | B49: 25030100207 | C49: 25003 | D49: 金竹街道官井湖社区 | E49: 专职网格员 | F49: 65 | G49: =SUMPRODUCT(($D$4:$D$325=D49)*($E$4:$E$325=E49)*($F$4:$F$325>F49))+1 -> 46
A50: 吴平春 | B50: 25030100219 | C50: 25003 | D50: 金竹街道官井湖社区 | E50: 专职网格员 | F50: 65 | G50: =SUMPRODUCT(($D$4:$D$325=D50)*($E$4:$E$325=E50)*($F$4:$F$325>F50))+1 -> 46
A51: 杨秋 | B51: 25030100228 | C51: 25003 | D51: 金竹街道官井湖社区 | E51: 专职网格员 | F51: 65 | G51: =SUMPRODUCT(($D$4:$D$325=D51)*($E$4:$E$325=E51)*($F$4:$F$325>F51))+1 -> 46
A52: 李道琴 | B52: 25030100323 | C52: 25003 | D52: 金竹街道官井湖社区 | E52: 专职网格员 | F52: 65 | G52: =SUMPRODUCT(($D$4:$D$325=D52)*($E$4:$E$325=E52)*($F$4:$F$325>F52))+1 -> 46
A53: 杨冬梅 | B53: 25030100422 | C53: 25003 | D53: 金竹街道官井湖社区 | E53: 专职网格员 | F53: 65 | G53: =SUMPRODUCT(($D$4:$D$325=D53)*($E$4:$E$325=E53)*($F$4:$F$325>F53))+1 -> 46
A54: 朱允桃 | B54: 25030100711 | C54: 25003 | D54: 金竹街道官井湖社区 | E54: 专职网格员 | F54: 65 | G54: =SUMPRODUCT(($D$4:$D$325=D54)*($E$4:$E$325=E54)*($F$4:$F$325>F54))+1 -> 46
A55: 张群尧 | B55: 25030100404 | C55: 25003 | D55: 金竹街道官井湖社区 | E55: 专职网格员 | F55: 64.5 | G55: =SUMPRODUCT(($D$4:$D$325=D55)*($E$4:$E$325=E55)*($F$4:$F$325>F55))+1 -> 52
A56: 刘宏丽 | B56: 25030100502 | C56: 25003 | D56: 金竹街道官井湖社区 | E56: 专职网格员 | F56: 64 | G56: =SUMPRODUCT(($D$4:$D$325=D56)*($E$4:$E$325=E56)*($F$4:$F$325>F56))+1 -> 53
A57: 欧宏靖 | B57: 25030100701 | C57: 25003 | D57: 金竹街道官井湖社区 | E57: 专职网格员 | F57: 64 | G57: =SUMPRODUCT(($D$4:$D$325=D57)*($E$4:$E$325=E57)*($F$4:$F$325>F57))+1 -> 53
A58: 项军海 | B58: 25030100307 | C58: 25003 | D58: 金竹街道官井湖社区 | E58: 专职网格员 | F58: 63 | G58: =SUMPRODUCT(($D$4:$D$325=D58)*($E$4:$E$325=E58)*($F$4:$F$325>F58))+1 -> 55
A59: 莫大雷 | B59: 25030100616 | C59: 25003 | D59: 金竹街道官井湖社区 | E59: 专职网格员 | F59: 63 | G59: =SUMPRODUCT(($D$4:$D$325=D59)*($E$4:$E$325=E59)*($F$4:$F$325>F59))+1 -> 55
A60: 丁本红 | B60: 25030100923 | C60: 25003 | D60: 金竹街道官井湖社区 | E60: 专职网格员 | F60: 63 | G60: =SUMPRODUCT(($D$4:$D$325=D60)*($E$4:$E$325=E60)*($F$4:$F$325>F60))+1 -> 55
A61: 黄寿平 | B61: 25030101007 | C61: 25003 | D61: 金竹街道官井湖社区 | E61: 专职网格员 | F61: 62.5 | G61: =SUMPRODUCT(($D$4:$D$325=D61)*($E$4:$E$325=E61)*($F$4:$F$325>F61))+1 -> 58
A62: 杨仁花 | B62: 25030101112 | C62: 25003 | D62: 金竹街道官井湖社区 | E62: 专职网格员 | F62: 62.5 | G62: =SUMPRODUCT(($D$4:$D$325=D62)*($E$4:$E$325=E62)*($F$4:$F$325>F62))+1 -> 58
A63: 陆龙毅 | B63: 25030100105 | C63: 25003 | D63: 金竹街道官井湖社区 | E63: 专职网格员 | F63: 62 | G63: =SUMPRODUCT(($D$4:$D$325=D63)*($E$4:$E$325=E63)*($F$4:$F$325>F63))+1 -> 60
A64: 王小群 | B64: 25030100126 | C64: 25003 | D64: 金竹街道官井湖社区 | E64: 专职网格员 | F64: 62 | G64: =SUMPRODUCT(($D$4:$D$325=D64)*($E$4:$E$325=E64)*($F$4:$F$325>F64))+1 -> 60
A65: 何贵香 | B65: 25030100425 | C65: 25003 | D65: 金竹街道官井湖社区 | E65: 专职网格员 | F65: 62 | G65: =SUMPRODUCT(($D$4:$D$325=D65)*($E$4:$E$325=E65)*($F$4:$F$325>F65))+1 -> 60
A66: 姚金姗 | B66: 25030100518 | C66: 25003 | D66: 金竹街道官井湖社区 | E66: 专职网格员 | F66: 62 | G66: =SUMPRODUCT(($D$4:$D$325=D66)*($E$4:$E$325=E66)*($F$4:$F$325>F66))+1 -> 60
A67: 陶慧玲 | B67: 25030100717 | C67: 25003 | D67: 金竹街道官井湖社区 | E67: 专职网格员 | F67: 62 | G67: =SUMPRODUCT(($D$4:$D$325=D67)*($E$4:$E$325=E67)*($F$4:$F$325>F67))+1 -> 60
A68: 王俊 | B68: 25030101106 | C68: 25003 | D68: 金竹街道官井湖社区 | E68: 专职网格员 | F68: 62 | G68: =SUMPRODUCT(($D$4:$D$325=D68)*($E$4:$E$325=E68)*($F$4:$F$325>F68))+1 -> 60
A69: 李耕 | B69: 25030100330 | C69: 25003 | D69: 金竹街道官井湖社区 | E69: 专职网格员 | F69: 61.5 | G69: =SUMPRODUCT(($D$4:$D$325=D69)*($E$4:$E$325=E69)*($F$4:$F$325>F69))+1 -> 66
A70: 陈雨馨 | B70: 25030100418 | C70: 25003 | D70: 金竹街道官井湖社区 | E70: 专职网格员 | F70: 61.5 | G70: =SUMPRODUCT(($D$4:$D$325=D70)*($E$4:$E$325=E70)*($F$4:$F$325>F70))+1 -> 66
A71: 吴忠秀 | B71: 25030100612 | C71: 25003 | D71: 金竹街道官井湖社区 | E71: 专职网格员 | F71: 61.5 | G71: =SUMPRODUCT(($D$4:$D$325=D71)*($E$4:$E$325=E71)*($F$4:$F$325>F71))+1 -> 66
A72: 王武 | B72: 25030100726 | C72: 25003 | D72: 金竹街道官井湖社区 | E72: 专职网格员 | F72: 61.5 | G72: =SUMPRODUCT(($D$4:$D$325=D72)*($E$4:$E$325=E72)*($F$4:$F$325>F72))+1 -> 66
A73: 杨江凤 | B73: 25030101006 | C73: 25003 | D73: 金竹街道官井湖社区 | E73: 专职网格员 | F73: 61.5 | G73: =SUMPRODUCT(($D$4:$D$325=D73)*($E$4:$E$325=E73)*($F$4:$F$325>F73))+1 -> 66
A74: 文有方 | B74: 25030100215 | C74: 25003 | D74: 金竹街道官井湖社区 | E74: 专职网格员 | F74: 61 | G74: =SUMPRODUCT(($D$4:$D$325=D74)*($E$4:$E$325=E74)*($F$4:$F$325>F74))+1 -> 71
A75: 赵尚香 | B75: 25030100521 | C75: 25003 | D75: 金竹街道官井湖社区 | E75: 专职网格员 | F75: 61 | G75: =SUMPRODUCT(($D$4:$D$325=D75)*($E$4:$E$325=E75)*($F$4:$F$325>F75))+1 -> 71
A76: 吴诗语 | B76: 25030100104 | C76: 25003 | D76: 金竹街道官井湖社区 | E76: 专职网格员 | F76: 60.5 | G76: =SUMPRODUCT(($D$4:$D$325=D76)*($E$4:$E$325=E76)*($F$4:$F$325>F76))+1 -> 73
A77: 吴先珍 | B77: 25030100107 | C77: 25003 | D77: 金竹街道官井湖社区 | E77: 专职网格员 | F77: 60.5 | G77: =SUMPRODUCT(($D$4:$D$325=D77)*($E$4:$E$325=E77)*($F$4:$F$325>F77))+1 -> 73
A78: 李俊 | B78: 25030100113 | C78: 25003 | D78: 金竹街道官井湖社区 | E78: 专职网格员 | F78: 60.5 | G78: =SUMPRODUCT(($D$4:$D$325=D78)*($E$4:$E$325=E78)*($F$4:$F$325>F78))+1 -> 73
A79: 冯文建 | B79: 25030100120 | C79: 25003 | D79: 金竹街道官井湖社区 | E79: 专职网格员 | F79: 60.5 | G79: =SUMPRODUCT(($D$4:$D$325=D79)*($E$4:$E$325=E79)*($F$4:$F$325>F79))+1 -> 73
A80: 刘茂 | B80: 25030100509 | C80: 25003 | D80: 金竹街道官井湖社区 | E80: 专职网格员 | F80: 60.5 | G80: =SUMPRODUCT(($D$4:$D$325=D80)*($E$4:$E$325=E80)*($F$4:$F$325>F80))+1 -> 73
A81: 邓继燕 | B81: 25030100608 | C81: 25003 | D81: 金竹街道官井湖社区 | E81: 专职网格员 | F81: 60.5 | G81: =SUMPRODUCT(($D$4:$D$325=D81)*($E$4:$E$325=E81)*($F$4:$F$325>F81))+1 -> 73
A82: 杨火芝 | B82: 25030100522 | C82: 25003 | D82: 金竹街道官井湖社区 | E82: 专职网格员 | F82: 60 | G82: =SUMPRODUCT(($D$4:$D$325=D82)*($E$4:$E$325=E82)*($F$4:$F$325>F82))+1 -> 79
A83: 王苏 | B83: 25030100609 | C83: 25003 | D83: 金竹街道官井湖社区 | E83: 专职网格员 | F83: 60 | G83: =SUMPRODUCT(($D$4:$D$325=D83)*($E$4:$E$325=E83)*($F$4:$F$325>F83))+1 -> 79
A84: 张欢欢 | B84: 25030100817 | C84: 25003 | D84: 金竹街道官井湖社区 | E84: 专职网格员 | F84: 60 | G84: =SUMPRODUCT(($D$4:$D$325=D84)*($E$4:$E$325=E84)*($F$4:$F$325>F84))+1 -> 79
A85: 王文敏 | B85: 25030100823 | C85: 25003 | D85: 金竹街道官井湖社区 | E85: 专职网格员 | F85: 60 | G85: =SUMPRODUCT(($D$4:$D$325=D85)*($E$4:$E$325=E85)*($F$4:$F$325>F85))+1 -> 79
A86: 周贞琴 | B86: 25030100309 | C86: 25003 | D86: 金竹街道官井湖社区 | E86: 专职网格员 | F86: 59.5 | G86: =SUMPRODUCT(($D$4:$D$325=D86)*($E$4:$E$325=E86)*($F$4:$F$325>F86))+1 -> 83
A87: 唐尚银 | B87: 25030100911 | C87: 25003 | D87: 金竹街道官井湖社区 | E87: 专职网格员 | F87: 59.5 | G87: =SUMPRODUCT(($D$4:$D$325=D87)*($E$4:$E$325=E87)*($F$4:$F$325>F87))+1 -> 83
A88: 文堂云 | B88: 25030101008 | C88: 25003 | D88: 金竹街道官井湖社区 | E88: 专职网格员 | F88: 59.5 | G88: =SUMPRODUCT(($D$4:$D$325=D88)*($E$4:$E$325=E88)*($F$4:$F$325>F88))+1 -> 83
A89: 龙浒 | B89: 25030101113 | C89: 25003 | D89: 金竹街道官井湖社区 | E89: 专职网格员 | F89: 59.5 | G89: =SUMPRODUCT(($D$4:$D$325=D89)*($E$4:$E$325=E89)*($F$4:$F$325>F89))+1 -> 83
A90: 兰忠秀 | B90: 25030100225 | C90: 25003 | D90: 金竹街道官井湖社区 | E90: 专职网格员 | F90: 59 | G90: =SUMPRODUCT(($D$4:$D$325=D90)*($E$4:$E$325=E90)*($F$4:$F$325>F90))+1 -> 87
A91: 潘小淤 | B91: 25030100514 | C91: 25003 | D91: 金竹街道官井湖社区 | E91: 专职网格员 | F91: 59 | G91: =SUMPRODUCT(($D$4:$D$325=D91)*($E$4:$E$325=E91)*($F$4:$F$325>F91))+1 -> 87
A92: 喻庭康 | B92: 25030100929 | C92: 25003 | D92: 金竹街道官井湖社区 | E92: 专职网格员 | F92: 59 | G92: =SUMPRODUCT(($D$4:$D$325=D92)*($E$4:$E$325=E92)*($F$4:$F$325>F92))+1 -> 87
A93: 尤烩敏 | B93: 25030100322 | C93: 25003 | D93: 金竹街道官井湖社区 | E93: 专职网格员 | F93: 58.5 | G93: =SUMPRODUCT(($D$4:$D$325=D93)*($E$4:$E$325=E93)*($F$4:$F$325>F93))+1 -> 90
A94: 赵珣 | B94: 25030100922 | C94: 25003 | D94: 金竹街道官井湖社区 | E94: 专职网格员 | F94: 58.5 | G94: =SUMPRODUCT(($D$4:$D$325=D94)*($E$4:$E$325=E94)*($F$4:$F$325>F94))+1 -> 90
A95: 杨馨语 | B95: 25030101022 | C95: 25003 | D95: 金竹街道官井湖社区 | E95: 专职网格员 | F95: 58.5 | G95: =SUMPRODUCT(($D$4:$D$325=D95)*($E$4:$E$325=E95)*($F$4:$F$325>F95))+1 -> 90
A96: 王雪 | B96: 25030100320 | C96: 25003 | D96: 金竹街道官井湖社区 | E96: 专职网格员 | F96: 58 | G96: =SUMPRODUCT(($D$4:$D$325=D96)*($E$4:$E$325=E96)*($F$4:$F$325>F96))+1 -> 93
A97: 闵兰兰 | B97: 25030100519 | C97: 25003 | D97: 金竹街道官井湖社区 | E97: 专职网格员 | F97: 58 | G97: =SUMPRODUCT(($D$4:$D$325=D97)*($E$4:$E$325=E97)*($F$4:$F$325>F97))+1 -> 93
A98: 王芳 | B98: 25030100721 | C98: 25003 | D98: 金竹街道官井湖社区 | E98: 专职网格员 | F98: 57.5 | G98: =SUMPRODUCT(($D$4:$D$325=D98)*($E$4:$E$325=E98)*($F$4:$F$325>F98))+1 -> 95
A99: 张全友 | B99: 25030100909 | C99: 25003 | D99: 金竹街道官井湖社区 | E99: 专职网格员 | F99: 57.5 | G99: =SUMPRODUCT(($D$4:$D$325=D99)*($E$4:$E$325=E99)*($F$4:$F$325>F99))+1 -> 95
A100: 文光美 | B100: 25030100106 | C100: 25003 | D100: 金竹街道官井湖社区 | E100: 专职网格员 | F100: 57 | G100: =SUMPRODUCT(($D$4:$D$325=D100)*($E$4:$E$325=E100)*($F$4:$F$325>F100))+1 -> 97
A101: 张莉 | B101: 25030100301 | C101: 25003 | D101: 金竹街道官井湖社区 | E101: 专职网格员 | F101: 57 | G101: =SUMPRODUCT(($D$4:$D$325=D101)*($E$4:$E$325=E101)*($F$4:$F$325>F101))+1 -> 97
A102: 谢妮 | B102: 25030100506 | C102: 25003 | D102: 金竹街道官井湖社区 | E102: 专职网格员 | F102: 57 | G102: =SUMPRODUCT(($D$4:$D$325=D102)*($E$4:$E$325=E102)*($F$4:$F$325>F102))+1 -> 97
A103: 熊譞煖 | B103: 25030100310 | C103: 25003 | D103: 金竹街道官井湖社区 | E103: 专职网格员 | F103: 56.5 | G103: =SUMPRODUCT(($D$4:$D$325=D103)*($E$4:$E$325=E103)*($F$4:$F$325>F103))+1 -> 100
A104: 李时钊 | B104: 25030100415 | C104: 25003 | D104: 金竹街道官井湖社区 | E104: 专职网格员 | F104: 56.5 | G104: =SUMPRODUCT(($D$4:$D$325=D104)*($E$4:$E$325=E104)*($F$4:$F$325>F104))+1 -> 100
A105: 杨帮群 | B105: 25030100702 | C105: 25003 | D105: 金竹街道官井湖社区 | E105: 专职网格员 | F105: 56.5 | G105: =SUMPRODUCT(($D$4:$D$325=D105)*($E$4:$E$325=E105)*($F$4:$F$325>F105))+1 -> 100
A106: 何春胤 | B106: 25030100212 | C106: 25003 | D106: 金竹街道官井湖社区 | E106: 专职网格员 | F106: 56 | G106: =SUMPRODUCT(($D$4:$D$325=D106)*($E$4:$E$325=E106)*($F$4:$F$325>F106))+1 -> 103
A107: 陈飞 | B107: 25030100510 | C107: 25003 | D107: 金竹街道官井湖社区 | E107: 专职网格员 | F107: 55.5 | G107: =SUMPRODUCT(($D$4:$D$325=D107)*($E$4:$E$325=E107)*($F$4:$F$325>F107))+1 -> 104
A108: 龙治花 | B108: 25030100902 | C108: 25003 | D108: 金竹街道官井湖社区 | E108: 专职网格员 | F108: 55 | G108: =SUMPRODUCT(($D$4:$D$325=D108)*($E$4:$E$325=E108)*($F$4:$F$325>F108))+1 -> 105
A109: 刘江群 | B109: 25030101009 | C109: 25003 | D109: 金竹街道官井湖社区 | E109: 专职网格员 | F109: 55 | G109: =SUMPRODUCT(($D$4:$D$325=D109)*($E$4:$E$325=E109)*($F$4:$F$325>F109))+1 -> 105
A110: 甘诗语 | B110: 25030100211 | C110: 25003 | D110: 金竹街道官井湖社区 | E110: 专职网格员 | F110: 54.5 | G110: =SUMPRODUCT(($D$4:$D$325=D110)*($E$4:$E$325=E110)*($F$4:$F$325>F110))+1 -> 107
A111: 吴和睿 | B111: 25030100712 | C111: 25003 | D111: 金竹街道官井湖社区 | E111: 专职网格员 | F111: 54.5 | G111: =SUMPRODUCT(($D$4:$D$325=D111)*($E$4:$E$325=E111)*($F$4:$F$325>F111))+1 -> 107
A112: 王成芳 | B112: 25030100826 | C112: 25003 | D112: 金竹街道官井湖社区 | E112: 专职网格员 | F112: 54.5 | G112: =SUMPRODUCT(($D$4:$D$325=D112)*($E$4:$E$325=E112)*($F$4:$F$325>F112))+1 -> 107
A113: 吴茂娟 | B113: 25030100914 | C113: 25003 | D113: 金竹街道官井湖社区 | E113: 专职网格员 | F113: 54.5 | G113: =SUMPRODUCT(($D$4:$D$325=D113)*($E$4:$E$325=E113)*($F$4:$F$325>F113))+1 -> 107
A114: 周欢欢 | B114: 25030101014 | C114: 25003 | D114: 金竹街道官井湖社区 | E114: 专职网格员 | F114: 54.5 | G114: =SUMPRODUCT(($D$4:$D$325=D114)*($E$4:$E$325=E114)*($F$4:$F$325>F114))+1 -> 107
A115: 龙安粉 | B115: 25030100213 | C115: 25003 | D115: 金竹街道官井湖社区 | E115: 专职网格员 | F115: 53.5 | G115: =SUMPRODUCT(($D$4:$D$325=D115)*($E$4:$E$325=E115)*($F$4:$F$325>F115))+1 -> 112
A116: 韦陈倩 | B116: 25030100302 | C116: 25003 | D116: 金竹街道官井湖社区 | E116: 专职网格员 | F116: 53.5 | G116: =SUMPRODUCT(($D$4:$D$325=D116)*($E$4:$E$325=E116)*($F$4:$F$325>F116))+1 -> 112
A117: 王丹 | B117: 25030100316 | C117: 25003 | D117: 金竹街道官井湖社区 | E117: 专职网格员 | F117: 53.5 | G117: =SUMPRODUCT(($D$4:$D$325=D117)*($E$4:$E$325=E117)*($F$4:$F$325>F117))+1 -> 112
A118: 文廷福 | B118: 25030100525 | C118: 25003 | D118: 金竹街道官井湖社区 | E118: 专职网格员 | F118: 53.5 | G118: =SUMPRODUCT(($D$4:$D$325=D118)*($E$4:$E$325=E118)*($F$4:$F$325>F118))+1 -> 112
A119: 金明艳 | B119: 25030100722 | C119: 25003 | D119: 金竹街道官井湖社区 | E119: 专职网格员 | F119: 53 | G119: =SUMPRODUCT(($D$4:$D$325=D119)*($E$4:$E$325=E119)*($F$4:$F$325>F119))+1 -> 116
A120: 李光婷 | B120: 25030100218 | C120: 25003 | D120: 金竹街道官井湖社区 | E120: 专职网格员 | F120: 52.5 | G120: =SUMPRODUCT(($D$4:$D$325=D120)*($E$4:$E$325=E120)*($F$4:$F$325>F120))+1 -> 117
A121: 胡雄辉 | B121: 25030100230 | C121: 25003 | D121: 金竹街道官井湖社区 | E121: 专职网格员 | F121: 52.5 | G121: =SUMPRODUCT(($D$4:$D$325=D121)*($E$4:$E$325=E121)*($F$4:$F$325>F121))+1 -> 117
A122: 杨兴梅 | B122: 25030100412 | C122: 25003 | D122: 金竹街道官井湖社区 | E122: 专职网格员 | F122: 52.5 | G122: =SUMPRODUCT(($D$4:$D$325=D122)*($E$4:$E$325=E122)*($F$4:$F$325>F122))+1 -> 117
A123: 周兴 | B123: 25030100622 | C123: 25003 | D123: 金竹街道官井湖社区 | E123: 专职网格员 | F123: 52.5 | G123: =SUMPRODUCT(($D$4:$D$325=D123)*($E$4:$E$325=E123)*($F$4:$F$325>F123))+1 -> 117
A124: 王星英 | B124: 25030100704 | C124: 25003 | D124: 金竹街道官井湖社区 | E124: 专职网格员 | F124: 52.5 | G124: =SUMPRODUCT(($D$4:$D$325=D124)*($E$4:$E$325=E124)*($F$4:$F$325>F124))+1 -> 117
A125: 高田生 | B125: 25030100326 | C125: 25003 | D125: 金竹街道官井湖社区 | E125: 专职网格员 | F125: 52 | G125: =SUMPRODUCT(($D$4:$D$325=D125)*($E$4:$E$325=E125)*($F$4:$F$325>F125))+1 -> 122
A126: 潘璐璐 | B126: 25030100619 | C126: 25003 | D126: 金竹街道官井湖社区 | E126: 专职网格员 | F126: 52 | G126: =SUMPRODUCT(($D$4:$D$325=D126)*($E$4:$E$325=E126)*($F$4:$F$325>F126))+1 -> 122
A127: 姜林芯 | B127: 25030100814 | C127: 25003 | D127: 金竹街道官井湖社区 | E127: 专职网格员 | F127: 52 | G127: =SUMPRODUCT(($D$4:$D$325=D127)*($E$4:$E$325=E127)*($F$4:$F$325>F127))+1 -> 122
A128: 赵元艳 | B128: 25030100429 | C128: 25003 | D128: 金竹街道官井湖社区 | E128: 专职网格员 | F128: 51.5 | G128: =SUMPRODUCT(($D$4:$D$325=D128)*($E$4:$E$325=E128)*($F$4:$F$325>F128))+1 -> 125
A129: 梁舒雨 | B129: 25030100527 | C129: 25003 | D129: 金竹街道官井湖社区 | E129: 专职网格员 | F129: 51.5 | G129: =SUMPRODUCT(($D$4:$D$325=D129)*($E$4:$E$325=E129)*($F$4:$F$325>F129))+1 -> 125
A130: 吴方丽 | B130: 25030100614 | C130: 25003 | D130: 金竹街道官井湖社区 | E130: 专职网格员 | F130: 51.5 | G130: =SUMPRODUCT(($D$4:$D$325=D130)*($E$4:$E$325=E130)*($F$4:$F$325>F130))+1 -> 125
A131: 罗有亮 | B131: 25030100906 | C131: 25003 | D131: 金竹街道官井湖社区 | E131: 专职网格员 | F131: 51.5 | G131: =SUMPRODUCT(($D$4:$D$325=D131)*($E$4:$E$325=E131)*($F$4:$F$325>F131))+1 -> 125
A132: 李昌柳 | B132: 25030100806 | C132: 25003 | D132: 金竹街道官井湖社区 | E132: 专职网格员 | F132: 51 | G132: =SUMPRODUCT(($D$4:$D$325=D132)*($E$4:$E$325=E132)*($F$4:$F$325>F132))+1 -> 129
A133: 陈锡琛 | B133: 25030101017 | C133: 25003 | D133: 金竹街道官井湖社区 | E133: 专职网格员 | F133: 51 | G133: =SUMPRODUCT(($D$4:$D$325=D133)*($E$4:$E$325=E133)*($F$4:$F$325>F133))+1 -> 129
A134: 杨洋 | B134: 25030100103 | C134: 25003 | D134: 金竹街道官井湖社区 | E134: 专职网格员 | F134: 50.5 | G134: =SUMPRODUCT(($D$4:$D$325=D134)*($E$4:$E$325=E134)*($F$4:$F$325>F134))+1 -> 131
A135: 李剑 | B135: 25030100112 | C135: 25003 | D135: 金竹街道官井湖社区 | E135: 专职网格员 | F135: 50.5 | G135: =SUMPRODUCT(($D$4:$D$325=D135)*($E$4:$E$325=E135)*($F$4:$F$325>F135))+1 -> 131
A136: 张雪梅 | B136: 25030100210 | C136: 25003 | D136: 金竹街道官井湖社区 | E136: 专职网格员 | F136: 50.5 | G136: =SUMPRODUCT(($D$4:$D$325=D136)*($E$4:$E$325=E136)*($F$4:$F$325>F136))+1 -> 131
A137: 廖有健 | B137: 25030100924 | C137: 25003 | D137: 金竹街道官井湖社区 | E137: 专职网格员 | F137: 50.5 | G137: =SUMPRODUCT(($D$4:$D$325=D137)*($E$4:$E$325=E137)*($F$4:$F$325>F137))+1 -> 131
A138: 杨芷颖 | B138: 25030100119 | C138: 25003 | D138: 金竹街道官井湖社区 | E138: 专职网格员 | F138: 50 | G138: =SUMPRODUCT(($D$4:$D$325=D138)*($E$4:$E$325=E138)*($F$4:$F$325>F138))+1 -> 135
A139: 熊周 | B139: 25030100414 | C139: 25003 | D139: 金竹街道官井湖社区 | E139: 专职网格员 | F139: 50 | G139: =SUMPRODUCT(($D$4:$D$325=D139)*($E$4:$E$325=E139)*($F$4:$F$325>F139))+1 -> 135
A140: 王开丽 | B140: 25030100428 | C140: 25003 | D140: 金竹街道官井湖社区 | E140: 专职网格员 | F140: 49 | G140: =SUMPRODUCT(($D$4:$D$325=D140)*($E$4:$E$325=E140)*($F$4:$F$325>F140))+1 -> 137
A141: 李阳阳 | B141: 25030100524 | C141: 25003 | D141: 金竹街道官井湖社区 | E141: 专职网格员 | F141: 48.5 | G141: =SUMPRODUCT(($D$4:$D$325=D141)*($E$4:$E$325=E141)*($F$4:$F$325>F141))+1 -> 138
A142: 吴方琴 | B142: 25030100611 | C142: 25003 | D142: 金竹街道官井湖社区 | E142: 专职网格员 | F142: 48.5 | G142: =SUMPRODUCT(($D$4:$D$325=D142)*($E$4:$E$325=E142)*($F$4:$F$325>F142))+1 -> 138
A143: 彭正香 | B143: 25030100123 | C143: 25003 | D143: 金竹街道官井湖社区 | E143: 专职网格员 | F143: 47.5 | G143: =SUMPRODUCT(($D$4:$D$325=D143)*($E$4:$E$325=E143)*($F$4:$F$325>F143))+1 -> 140
A144: 孟卿 | B144: 25030100305 | C144: 25003 | D144: 金竹街道官井湖社区 | E144: 专职网格员 | F144: 47.5 | G144: =SUMPRODUCT(($D$4:$D$325=D144)*($E$4:$E$325=E144)*($F$4:$F$325>F144))+1 -> 140
A145: 屈承琴 | B145: 25030100314 | C145: 25003 | D145: 金竹街道官井湖社区 | E145: 专职网格员 | F145: 47.5 | G145: =SUMPRODUCT(($D$4:$D$325=D145)*($E$4:$E$325=E145)*($F$4:$F$325>F145))+1 -> 140
A146: 熊育家 | B146: 25030100402 | C146: 25003 | D146: 金竹街道官井湖社区 | E146: 专职网格员 | F146: 47.5 | G146: =SUMPRODUCT(($D$4:$D$325=D146)*($E$4:$E$325=E146)*($F$4:$F$325>F146))+1 -> 140
A147: 许宏 | B147: 25030100115 | C147: 25003 | D147: 金竹街道官井湖社区 | E147: 专职网格员 | F147: 47 | G147: =SUMPRODUCT(($D$4:$D$325=D147)*($E$4:$E$325=E147)*($F$4:$F$325>F147))+1 -> 144
A148: 刘华琴 | B148: 25030100430 | C148: 25003 | D148: 金竹街道官井湖社区 | E148: 专职网格员 | F148: 47 | G148: =SUMPRODUCT(($D$4:$D$325=D148)*($E$4:$E$325=E148)*($F$4:$F$325>F148))+1 -> 144
A149: 苏思捷 | B149: 25030100820 | C149: 25003 | D149: 金竹街道官井湖社区 | E149: 专职网格员 | F149: 47 | G149: =SUMPRODUCT(($D$4:$D$325=D149)*($E$4:$E$325=E149)*($F$4:$F$325>F149))+1 -> 144
A150: 郑育英 | B150: 25030100405 | C150: 25003 | D150: 金竹街道官井湖社区 | E150: 专职网格员 | F150: 46.5 | G150: =SUMPRODUCT(($D$4:$D$325=D150)*($E$4:$E$325=E150)*($F$4:$F$325>F150))+1 -> 147
A151: 李永金 | B151: 25030100903 | C151: 25003 | D151: 金竹街道官井湖社区 | E151: 专职网格员 | F151: 46.5 | G151: =SUMPRODUCT(($D$4:$D$325=D151)*($E$4:$E$325=E151)*($F$4:$F$325>F151))+1 -> 147
A152: 杨娟 | B152: 25030101119 | C152: 25003 | D152: 金竹街道官井湖社区 | E152: 专职网格员 | F152: 46 | G152: =SUMPRODUCT(($D$4:$D$325=D152)*($E$4:$E$325=E152)*($F$4:$F$325>F152))+1 -> 149
A153: 喻朝辉 | B153: 25030100204 | C153: 25003 | D153: 金竹街道官井湖社区 | E153: 专职网格员 | F153: 45.5 | G153: =SUMPRODUCT(($D$4:$D$325=D153)*($E$4:$E$325=E153)*($F$4:$F$325>F153))+1 -> 150
A154: 杨丽 | B154: 25030100822 | C154: 25003 | D154: 金竹街道官井湖社区 | E154: 专职网格员 | F154: 45 | G154: =SUMPRODUCT(($D$4:$D$325=D154)*($E$4:$E$325=E154)*($F$4:$F$325>F154))+1 -> 151
A155: 胡朝美 | B155: 25030100627 | C155: 25003 | D155: 金竹街道官井湖社区 | E155: 专职网格员 | F155: 44.5 | G155: =SUMPRODUCT(($D$4:$D$325=D155)*($E$4:$E$325=E155)*($F$4:$F$325>F155))+1 -> 152
A156: 杨郁帆 | B156: 25030100927 | C156: 25003 | D156: 金竹街道官井湖社区 | E156: 专职网格员 | F156: 42.5 | G156: =SUMPRODUCT(($D$4:$D$325=D156)*($E$4:$E$325=E156)*($F$4:$F$325>F156))+1 -> 153
A157: 王红英 | B157: 25030100813 | C157: 25003 | D157: 金竹街道官井湖社区 | E157: 专职网格员 | F157: 41.5 | G157: =SUMPRODUCT(($D$4:$D$325=D157)*($E$4:$E$325=E157)*($F$4:$F$325>F157))+1 -> 154
A158: 罗显兰 | B158: 25030100124 | C158: 25003 | D158: 金竹街道官井湖社区 | E158: 专职网格员 | F158: 41 | G158: =SUMPRODUCT(($D$4:$D$325=D158)*($E$4:$E$325=E158)*($F$4:$F$325>F158))+1 -> 155
A159: 罗英飞 | B159: 25030100508 | C159: 25003 | D159: 金竹街道官井湖社区 | E159: 专职网格员 | F159: 39 | G159: =SUMPRODUCT(($D$4:$D$325=D159)*($E$4:$E$325=E159)*($F$4:$F$325>F159))+1 -> 156
A160: 罗化德 | B160: 25030100620 | C160: 25003 | D160: 金竹街道官井湖社区 | E160: 专职网格员 | F160: 38 | G160: =SUMPRODUCT(($D$4:$D$325=D160)*($E$4:$E$325=E160)*($F$4:$F$325>F160))+1 -> 157
A161: 吴玉兰 | B161: 25030100122 | C161: 25003 | D161: 金竹街道官井湖社区 | E161: 专职网格员 | F161: 34.5 | G161: =SUMPRODUCT(($D$4:$D$325=D161)*($E$4:$E$325=E161)*($F$4:$F$325>F161))+1 -> 158
A162: 刘富杰 | B162: 25030100427 | C162: 25003 | D162: 金竹街道官井湖社区 | E162: 专职网格员 | F162: 31.5 | G162: =SUMPRODUCT(($D$4:$D$325=D162)*($E$4:$E$325=E162)*($F$4:$F$325>F162))+1 -> 159
A163: 罗王缘 | B163: 25030100802 | C163: 25003 | D163: 金竹街道官井湖社区 | E163: 专职网格员 | F163: 30 | G163: =SUMPRODUCT(($D$4:$D$325=D163)*($E$4:$E$325=E163)*($F$4:$F$325>F163))+1 -> 160
A164: 代韵丽 | B164: 25030100102 | C164: 25003 | D164: 金竹街道官井湖社区 | E164: 专职网格员 | F164: 0 | G164: 缺考
A165: 晏宇 | B165: 25030100109 | C165: 25003 | D165: 金竹街道官井湖社区 | E165: 专职网格员 | F165: 0 | G165: 缺考
A166: 陆微微 | B166: 25030100201 | C166: 25003 | D166: 金竹街道官井湖社区 | E166: 专职网格员 | F166: 0 | G166: 缺考
A167: 陈仕和 | B167: 25030100203 | C167: 25003 | D167: 金竹街道官井湖社区 | E167: 专职网格员 | F167: 0 | G167: 缺考
A168: 余丽 | B168: 25030100223 | C168: 25003 | D168: 金竹街道官井湖社区 | E168: 专职网格员 | F168: 0 | G168: 缺考
A169: 龙晓霞 | B169: 25030100226 | C169: 25003 | D169: 金竹街道官井湖社区 | E169: 专职网格员 | F169: 0 | G169: 缺考
A170: 蒙开杏 | B170: 25030100311 | C170: 25003 | D170: 金竹街道官井湖社区 | E170: 专职网格员 | F170: 0 | G170: 缺考
A171: 孙振梅 | B171: 25030100313 | C171: 25003 | D171: 金竹街道官井湖社区 | E171: 专职网格员 | F171: 0 | G171: 缺考
A172: 黄俊 | B172: 25030100318 | C172: 25003 | D172: 金竹街道官井湖社区 | E172: 专职网格员 | F172: 0 | G172: 缺考
A173: 吴阳 | B173: 25030100324 | C173: 25003 | D173: 金竹街道官井湖社区 | E173: 专职网格员 | F173: 0 | G173: 缺考
A174: 袁月晴 | B174: 25030100325 | C174: 25003 | D174: 金竹街道官井湖社区 | E174: 专职网格员 | F174: 0 | G174: 缺考
A175: 陈文英 | B175: 25030100327 | C175: 25003 | D175: 金竹街道官井湖社区 | E175: 专职网格员 | F175: 0 | G175: 缺考
A176: 夏国艳 | B176: 25030100329 | C176: 25003 | D176: 金竹街道官井湖社区 | E176: 专职网格员 | F176: 0 | G176: 缺考
A177: 陈家欢 | B177: 25030100411 | C177: 25003 | D177: 金竹街道官井湖社区 | E177: 专职网格员 | F177: 0 | G177: 缺考
A178: 熊绍花 | B178: 25030100419 | C178: 25003 | D178: 金竹街道官井湖社区 | E178: 专职网格员 | F178: 0 | G178: 缺考
A179: 文学辉 | B179: 25030100420 | C179: 25003 | D179: 金竹街道官井湖社区 | E179: 专职网格员 | F179: 0 | G179: 缺考
A180: 吴元勋 | B180: 25030100423 | C180: 25003 | D180: 金竹街道官井湖社区 | E180: 专职网格员 | F180: 0 | G180: 缺考
A181: 蔡开露 | B181: 25030100424 | C181: 25003 | D181: 金竹街道官井湖社区 | E181: 专职网格员 | F181: 0 | G181: 缺考
A182: 潘学凤 | B182: 25030100503 | C182: 25003 | D182: 金竹街道官井湖社区 | E182: 专职网格员 | F182: 0 | G182: 缺考
A183: 熊绍秀 | B183: 25030100505 | C183: 25003 | D183: 金竹街道官井湖社区 | E183: 专职网格员 | F183: 0 | G183: 缺考
A184: 柒贵丽 | B184: 25030100511 | C184: 25003 | D184: 金竹街道官井湖社区 | E184: 专职网格员 | F184: 0 | G184: 缺考
A185: 李茂瑞 | B185: 25030100512 | C185: 25003 | D185: 金竹街道官井湖社区 | E185: 专职网格员 | F185: 0 | G185: 缺考
A186: 郎淳 | B186: 25030100513 | C186: 25003 | D186: 金竹街道官井湖社区 | E186: 专职网格员 | F186: 0 | G186: 缺考
A187: 王天秀 | B187: 25030100515 | C187: 25003 | D187: 金竹街道官井湖社区 | E187: 专职网格员 | F187: 0 | G187: 缺考
A188: 吴大芳 | B188: 25030100517 | C188: 25003 | D188: 金竹街道官井湖社区 | E188: 专职网格员 | F188: 0 | G188: 缺考
A189: 邓窕窕 | B189: 25030100520 | C189: 25003 | D189: 金竹街道官井湖社区 | E189: 专职网格员 | F189: 0 | G189: 缺考
A190: 王艳林 | B190: 25030100523 | C190: 25003 | D190: 金竹街道官井湖社区 | E190: 专职网格员 | F190: 0 | G190: 缺考
A191: 龚发珍 | B191: 25030100526 | C191: 25003 | D191: 金竹街道官井湖社区 | E191: 专职网格员 | F191: 0 | G191: 缺考
A192: 尹庆红 | B192: 25030100528 | C192: 25003 | D192: 金竹街道官井湖社区 | E192: 专职网格员 | F192: 0 | G192: 缺考
A193: 邹祖美 | B193: 25030100529 | C193: 25003 | D193: 金竹街道官井湖社区 | E193: 专职网格员 | F193: 0 | G193: 缺考
A194: 陈银欢 | B194: 25030100530 | C194: 25003 | D194: 金竹街道官井湖社区 | E194: 专职网格员 | F194: 0 | G194: 缺考
A195: 金秀晨 | B195: 25030100610 | C195: 25003 | D195: 金竹街道官井湖社区 | E195: 专职网格员 | F195: 0 | G195: 缺考
A196: 张圆圆 | B196: 25030100623 | C196: 25003 | D196: 金竹街道官井湖社区 | E196: 专职网格员 | F196: 0 | G196: 缺考
A197: 尹晓洁 | B197: 25030100624 | C197: 25003 | D197: 金竹街道官井湖社区 | E197: 专职网格员 | F197: 0 | G197: 缺考
A198: 罗炳和 | B198: 25030100628 | C198: 25003 | D198: 金竹街道官井湖社区 | E198: 专职网格员 | F198: 0 | G198: 缺考
A199: 程有泓 | B199: 25030100629 | C199: 25003 | D199: 金竹街道官井湖社区 | E199: 专职网格员 | F199: 0 | G199: 缺考
A200: 金家燕 | B200: 25030100705 | C200: 25003 | D200: 金竹街道官井湖社区 | E200: 专职网格员 | F200: 0 | G200: 缺考
... 125 more rows
